bitfinex-derivatives/quotes_ETHF0:USTF0_20240923
["timestamp","ask_amount","ask_price","bid_price","bid_amount"]
[1727054835689,3.89849713,2608.5,2608.3,0.38336]
[1727054835896,3.01372206,2608.4,2608.3,0.38336]
[1727054837000,3.39707206,2608.4,2608.2,0.38337]
[1727054837195,3.01372206,2608.4,2607.6,0.392]
[1727054837490,3.01372206,2608.4,2606.8,11.52555717]
[1727054837491,0.38348,2607.6,2607.4,3.59129]
[1727054837692,0.38348,2607.5,2607.4,3.2078]
[1727054838289,3.39720206,2607.6,2607.4,3.2078]
[1727054838582,3.01372206,2607.6,2607.4,3.2078]
[1727054838782,0.38346,2607.7,2607.5,0.38348]
[1727054838783,3.39718206,2607.7,2607.5,0.38348]
[1727054839085,0.38348,2607.6,2607.4,3.59129]
[1727054839286,3.39720206,2607.6,2607.4,3.2078]
[1727054839591,3.01372206,2607.7,2607.5,0.38348]
[1727054839792,3.39717206,2607.8,2607.5,0.38348]
[1727054840287,0.38348,2607.5,2607.4,3.2078]
[1727054840489,0.38348,2607.6,2607.4,3.2078]
[1727054840694,3.39720206,2607.6,2607.4,3.2078]
[1727054841489,3.01372206,2607.6,2607.4,3.2078]
[1727054841706,3.41502206,2607.7,2607.5,0.38348]
[1727054841893,3.01372206,2607.8,2607.6,0.38347]
[1727054842092,3.01372206,2607.8,2607.4,5.2978]
[1727054842093,3.39716206,2607.8,2607.5,0.38348]
[1727054842295,3.01372206,2607.8,2607.4,5.2978]
[1727054842488,2.51058624,2607.5,2607.4,5.6813]
[1727054842691,2.51058624,2607.5,2607.4,3.5913]
[1727054843196,2.51058624,2607.5,2607.4,7.4265]
[1727054843495,2.51058624,2607.5,2607.4,3.5913]
[1727054843695,0.38346,2607.7,2607.4,3.5913]
[1727054844299,0.38346,2607.7,2607.5,0.38348]
[1727054844799,0.38345,2607.8,2607.5,0.38348]
[1727054845290,0.38346,2607.7,2607.4,3.59129]
[1727054845485,0.38348,2607.5,2607.4,3.2078]
[1727054845690,0.95878,2607.4,2606.7,3.2078]
[1727054845891,0.3836,2606.8,2606.7,3.2078]
[1727054846092,0.3836,2606.8,2606.4,0.78054]
[1727054846391,0.38358,2606.9,2606.6,0.38362]
[1727054846900,1.08114025,2607.2,2606.5,2.09]
[1727054847087,1.08114025,2607.2,2606.4,0.3969]
[1727054847088,1.08114025,2607.2,2607.0,0.38356]
[1727054847290,0.38352,2607.3,2607.0,0.38356]
[1727054847794,1.45594025,2607.4,2606.9,3.2078]
[1727054848093,0.3748,2607.4,2607.1,0.38354]
[1727054848312,0.3748,2607.4,2607.2,0.38353]
[1727054849103,1.17578,2607.6,2607.3,0.38351]
[1727054849297,0.7923,2607.6,2607.3,0.3835]
[1727054849602,0.7923,2607.6,2607.1,0.3739]
[1727054849603,0.7923,2607.6,2607.4,0.3835]
[1727054849805,0.7923,2607.6,2607.2,0.38353]
[1727054849993,0.38349,2607.5,2607.2,0.38353]
[1727054851800,0.7923,2607.6,2607.3,0.3835]
[1727054851997,1.17578,2607.6,2607.3,0.3835]
[1727054855303,1.17578,2607.6,2607.4,0.3835]
[1727054855304,0.7923,2607.6,2607.4,0.3835]
[1727054855501,0.7923,2607.6,2607.1,0.3739]
[1727054855502,0.3951,2607.9,2607.2,5.2978]
[1727054855697,0.38345,2607.8,2607.5,0.38348]
[1727054856298,0.38345,2607.8,2607.2,5.2978]
[1727054856600,1.47469283,2607.9,2607.2,5.2978]
[1727054856601,0.38339,2608.2,2607.9,0.38342]
[1727054856800,0.3834,2608.1,2607.9,0.38342]
[1727054857298,0.38339,2608.2,2608.0,0.38341]
[1727054857492,0.38339,2608.2,2607.6,2.09]
[1727054857892,0.3834,2608.1,2607.9,0.38342]
[1727054859200,3.46903624,2608.3,2607.8,0.38343]
[1727054859400,0.38342,2608.0,2607.8,0.38343]
[1727054859592,0.38341,2608.0,2607.8,0.38343]
[1727054859994,2.51058624,2608.1,2607.5,3.2078]
[1727054859995,2.89399624,2608.1,2607.5,3.2078]
[1727054860199,0.38341,2608.1,2607.9,0.38343]
[1727054860402,0.38341,2608.0,2607.8,3.59123]
[1727054860803,2.51058624,2608.2,2607.8,3.59123]
[1727054860804,0.3834,2608.1,2607.9,0.38343]
[1727054861000,0.38341,2608.1,2607.9,0.38343]
[1727054861902,0.38341,2608.1,2607.8,3.59123]
[1727054861903,0.3834,2608.1,2607.8,3.59123]
[1727054862204,0.38343,2607.9,2607.4,3.2078]
[1727054862394,0.38343,2607.9,2607.5,0.38348]
[1727054862395,0.38346,2607.7,2607.5,0.38348]
[1727054862595,0.7896,2607.8,2607.4,3.2078]
[1727054862596,0.38347,2607.6,2607.4,3.2078]
[1727054862902,0.38347,2607.7,2607.4,3.5913]
[1727054863093,4.05313624,2607.8,2607.5,0.38348]
[1727054863298,3.66968624,2607.8,2607.4,3.2078]
[1727054863497,0.38345,2607.8,2607.5,0.38348]
[1727054863894,6.10181624,2607.9,2607.6,0.38346]
[1727054864507,0.38344,2607.8,2607.5,0.38348]
[1727054864901,0.38344,2607.8,2607.6,0.38347]
[1727054865094,0.38344,2607.8,2607.5,0.38348]
[1727054865498,2.00613742,2607.8,2607.6,0.38347]
[1727054865699,2.00613742,2607.7,2607.6,0.38347]
[1727054865900,0.38343,2607.9,2607.6,0.38347]
[1727054869114,0.38344,2607.8,2607.4,3.2078]
[1727054869618,0.38346,2607.7,2607.5,0.38348]
[1727054870708,0.38345,2607.8,2607.5,0.38348]
[1727054870905,0.38343,2607.9,2607.4,3.2078]
[1727054871104,0.38343,2607.9,2607.7,0.38346]
[1727054871508,1.1586,2608.0,2607.5,3.0487]
[1727054871714,1.1586,2608.0,2607.9,0.38343]
[1727054871715,0.3695,2608.0,2607.9,0.38343]
[1727054872108,0.75291,2608.0,2607.9,0.38343]
[1727054872311,0.75291,2608.0,2607.8,3.2078]
[1727054872312,0.38341,2608.0,2607.8,3.59123]
[1727054872907,3.8344,2608.0,2607.6,0.38347]
[1727054873112,0.38345,2607.8,2607.6,0.38347]
[1727054873509,2.96468742,2608.0,2607.3,3.2078]
[1727054873510,0.38346,2607.7,2607.5,0.38348]
[1727054873705,1.08002536,2607.9,2607.6,3.59126]
[1727054873908,0.38345,2607.8,2607.6,3.59126]
[1727054874916,2.38955742,2608.0,2607.8,0.38344]
[1727054875116,0.38342,2608.0,2607.8,0.38344]
[1727054875512,1.46373043,2608.0,2607.8,0.38344]
[1727054876314,1.08031043,2608.0,2607.7,0.4023]
[1727054876517,0.38344,2607.8,2607.7,0.4023]
[1727054876814,0.38344,2607.8,2607.3,3.2078]
[1727054876815,2.00613742,2607.8,2607.3,3.2078]
[1727054877010,2.00613742,2607.8,2607.4,0.38349]
[1727054877011,0.38347,2607.7,2607.4,0.38349]
[1727054877215,0.38347,2607.7,2607.5,0.38348]
[1727054878114,0.38349,2607.5,2607.3,3.2078]
[1727054878322,4.10975742,2607.8,2607.3,3.2078]
[1727054878323,0.3835,2607.4,2607.3,3.2078]
[1727054878509,0.38357,2607.0,2606.9,3.2078]
[1727054878818,0.95876,2607.4,2606.9,3.2078]
[1727054878819,0.38355,2607.1,2606.9,3.2078]
[1727054879409,1.54504,2607.2,2606.9,3.59137]
[1727054879809,1.1615,2607.2,2607.0,0.38356]
[1727054880006,1.1615,2607.2,2607.0,0.38355]
[1727054880211,0.38356,2607.0,2606.9,3.2078]
[1727054880421,4.12649742,2607.2,2606.6,3.2078]
[1727054880618,0.38357,2607.0,2606.6,3.59141]
[1727054881014,2.38970742,2607.0,2606.6,3.59141]
[1727054881619,2.38968742,2607.1,2606.7,0.3836]
[1727054883522,1.50588041,2607.0,2606.7,0.3836]
[1727054884208,1.88944041,2607.0,2606.7,0.3836]
[1727054884410,1.50588041,2607.0,2606.7,0.3836]
[1727054885117,1.50588041,2607.0,2606.6,3.2078]
[1727054885118,0.38358,2606.9,2606.6,3.59141]
[1727054885321,1.50588041,2606.8,2606.1,3.2078]
[1727054885527,1.50588041,2606.7,2606.5,0.38363]
[1727054886116,1.50588041,2606.7,2606.1,3.2078]
[1727054886322,0.38371,2606.0,2605.7,3.59154]
[1727054886621,0.38371,2606.0,2605.7,3.2078]
[1727054886622,0.38372,2605.9,2605.7,3.2078]
[1727054886820,1.88960041,2605.9,2605.7,3.2078]
[1727054887119,2.26980041,2605.9,2605.7,3.2078]
[1727054887326,0.38374,2605.8,2605.7,3.2078]
[1727054887520,0.38374,2605.8,2605.3,0.3862]
[1727054887521,0.38377,2605.6,2605.3,3.2078]
[1727054887820,2.47377,2605.6,2605.3,3.2078]
[1727054888015,0.38377,2605.6,2605.3,3.2078]
[1727054888422,0.77487,2605.6,2605.3,3.2078]
[1727054889229,0.38379,2605.4,2605.3,3.2078]
[1727054889921,3.8384,2605.4,2604.6,3.2078]
[1727054890224,0.38385,2605.1,2604.6,3.2078]
[1727054890424,0.38386,2605.0,2604.6,3.2078]
[1727054890726,3.584,2605.3,2604.6,3.2078]
[1727054891223,3.96782,2605.3,2604.6,3.5917]
[1727054891623,3.584,2605.3,2604.8,0.38387]
[1727054891924,0.77487,2605.6,2605.0,0.38384]
[1727054892918,0.38378,2605.5,2605.0,0.38384]
[1727054895226,0.38378,2605.5,2605.1,0.38384]
[1727054895815,0.38378,2605.5,2605.0,0.38385]
[1727054896422,3.2078,2606.7,2605.3,5.2978]
[1727054896617,2.00613742,2607.2,2605.9,2.09]
[1727054896618,0.7685,2606.5,2605.9,2.09]
[1727054896828,0.7685,2606.5,2606.0,3.2078]
[1727054897024,0.7685,2606.5,2606.3,0.38366]
[1727054897327,0.3761,2606.5,2606.3,0.38366]
[1727054898130,0.3761,2606.5,2606.1,0.3778]
[1727054898337,0.38365,2606.4,2606.0,0.3837]
[1727054898532,0.3761,2606.5,2605.7,3.2078]
[1727054898831,0.3754,2606.4,2605.7,3.2078]
[1727054899035,0.75905,2606.4,2606.0,0.3837]
[1727054899936,0.75905,2606.4,2605.7,3.2078]
[1727054899937,0.3754,2606.4,2606.1,0.38368]
[1727054900235,0.38365,2606.4,2606.0,0.3837]
[1727054900425,0.75974,2606.5,2606.0,0.3837]
[1727054900828,0.75974,2606.5,2605.7,3.2078]
[1727054900829,0.3761,2606.5,2605.7,3.2078]
[1727054901029,0.3761,2606.5,2606.1,2.09]
[1727054901227,0.3836,2606.8,2606.1,2.09]
[1727054901425,0.38359,2606.8,2606.1,2.09]
[1727054901633,0.38359,2606.8,2606.4,0.38364]
[1727054901932,3.2078,2607.0,2606.8,0.38358]
[1727054902138,3.2078,2607.0,2606.7,0.3836]
[1727054902330,3.2078,2607.0,2606.8,0.38359]
[1727054902730,3.2078,2607.0,2606.4,2.4866]
[1727054902927,3.59137,2607.0,2606.6,0.38361]
[1727054903240,3.59137,2607.0,2606.4,2.4866]
[1727054903241,3.2078,2607.0,2606.4,2.4866]
[1727054903433,3.2078,2607.0,2606.6,2.09]
[1727054903634,3.6111,2607.1,2606.9,0.38356]
[1727054903838,0.38348,2607.6,2607.2,0.38352]
[1727054904337,1.1779,2607.7,2607.1,0.38353]
[1727054904637,0.3835,2607.5,2606.9,3.2078]
[1727054904835,0.3835,2607.5,2607.1,0.38354]
[1727054905033,0.3835,2607.5,2607.0,0.38355]
[1727054905337,0.3835,2607.5,2606.9,3.2078]
[1727054905338,5.2978,2607.5,2606.9,3.2078]
[1727054905535,0.38354,2607.1,2606.7,0.3836]
[1727054905739,2.09,2607.2,2606.7,0.3836]
[1727054905939,0.76125,2607.1,2606.7,0.3836]
[1727054906139,0.3777,2607.1,2606.8,0.38358]
[1727054906331,0.3777,2607.1,2606.4,0.3966]
[1727054906537,3.2078,2606.9,2606.3,3.59146]
[1727054906737,1.737,2607.0,2606.4,0.38364]
[1727054906940,0.3836,2606.8,2606.5,0.38363]
[1727054907536,0.3836,2606.8,2606.4,0.38364]
[1727054907841,0.3836,2606.8,2606.5,0.38363]
[1727054908136,0.3836,2606.8,2606.2,3.5858]
[1727054908137,0.3836,2606.7,2606.4,0.38364]
[1727054908447,0.38361,2606.7,2606.4,0.38364]
[1727054909038,0.38362,2606.6,2606.3,0.38365]
[1727054909436,4.94481,2607.0,2606.2,3.5858]
[1727054909437,0.38361,2606.7,2606.4,0.38364]
[1727054910128,0.3836,2606.8,2606.5,0.38363]
[1727054910729,0.3836,2606.8,2606.2,3.5858]
[1727054910730,0.38362,2606.6,2606.3,0.38366]
[1727054910932,3.2078,2606.7,2606.2,3.2078]
[1727054911137,0.38366,2606.3,2606.2,3.2078]
[1727054911336,0.38366,2606.4,2606.2,3.2078]
[1727054911744,0.38364,2606.5,2606.2,3.59147]
[1727054912245,0.38362,2606.7,2606.3,0.38366]
[1727054912634,1.50588041,2606.8,2606.3,0.38366]
[1727054912837,6.95095742,2607.0,2606.3,0.38366]
[1727054912838,0.38362,2606.6,2606.3,0.38366]
[1727054913543,0.38363,2606.6,2606.3,0.38366]
[1727054914341,1.50588041,2606.9,2606.2,3.2078]
[1727054914549,0.38362,2606.7,2606.3,0.38366]
[1727054914847,0.38362,2606.6,2606.4,0.38365]
[1727054915149,0.38359,2606.8,2606.2,3.2078]
[1727054915338,0.38359,2606.8,2606.5,0.38363]
[1727054916334,1.50588041,2606.9,2606.4,0.38364]
[1727054916539,0.38361,2606.7,2606.4,0.38364]
[1727054916740,0.38361,2606.7,2606.5,0.38363]
[1727054916936,0.3836,2606.8,2606.5,0.38363]
[1727054917137,0.38361,2606.7,2606.5,0.38363]
[1727054917438,0.38359,2606.8,2606.5,0.38363]
[1727054917636,1.88947041,2606.8,2606.6,0.38362]
[1727054917839,1.88947041,2606.8,2606.2,3.2078]
[1727054918138,1.88947041,2606.8,2606.5,0.38363]
[1727054918139,0.3836,2606.7,2606.5,0.38363]
[1727054918340,0.38358,2606.9,2606.6,0.38361]
[1727054918548,0.3772,2607.0,2606.8,0.38358]
[1727054918739,3.5847,2607.4,2606.5,3.2078]
[1727054918946,3.5847,2607.4,2606.2,2.58]
[1727054918947,0.3769,2607.4,2606.8,3.2078]
[1727054919250,0.3769,2607.4,2607.1,0.38354]
[1727054919442,0.38352,2607.3,2607.1,0.38354]
[1727054919850,0.38352,2607.3,2606.8,3.2078]
[1727054920041,0.38352,2607.3,2607.0,0.38354]
[1727054920242,0.38353,2607.2,2607.0,0.38354]
[1727054920442,3.5847,2607.4,2606.8,0.38358]
[1727054920644,0.38355,2607.1,2606.8,0.38358]
[1727054920846,0.3769,2607.4,2606.6,0.385]
[1727054921052,0.38352,2607.3,2607.0,0.38355]
[1727054921346,0.38352,2607.3,2606.6,0.385]
[1727054921347,0.38352,2607.3,2607.1,0.38354]
[1727054923853,0.38352,2607.3,2606.6,1.34403]
[1727054923854,1.72231,2607.6,2606.8,3.2078]
[1727054924151,1.72231,2607.6,2607.1,0.38353]
[1727054924345,0.38351,2607.3,2607.1,0.38353]
[1727054925349,2.00613742,2607.2,2606.9,0.3677]
[1727054925650,1.49928814,2607.0,2606.9,0.75127]
[1727054925945,1.49928814,2607.0,2606.9,0.3677]
[1727054926147,1.49928814,2607.0,2606.9,0.38357]
[1727054928548,1.49928814,2607.0,2606.8,3.2078]
[1727054928755,1.49931617,2607.0,2606.9,0.38357]
[1727054929441,0.88951617,2607.0,2606.9,13.27851]
[1727054929641,3.01372206,2607.6,2606.9,13.27851]
[1727054929642,2.51058624,2607.9,2607.8,0.38344]
[1727054929947,2.89396624,2608.3,2608.1,0.3834]
[1727054930245,2.89396624,2608.3,2607.8,2.1]
[1727054930246,2.51058624,2608.3,2607.8,2.1]
[1727054930448,0.7573,2608.5,2608.0,0.38341]
[1727054930449,2.89397624,2608.2,2608.0,0.38341]
[1727054930646,0.3974,2608.2,2607.7,3.2078]
[1727054930851,2.90798624,2608.2,2607.7,3.2078]
[1727054931149,3.6052,2608.2,2607.7,3.2078]
[1727054931649,3.6052,2608.2,2607.9,0.38342]
[1727054931650,0.38341,2608.1,2607.9,0.38342]
[1727054932455,0.38342,2608.0,2607.8,0.38343]
[1727054933151,0.3834,2608.1,2607.9,0.38342]
[1727054933344,0.38341,2608.1,2607.9,0.38342]
[1727054933548,0.38342,2608.0,2607.7,3.2078]
[1727054933749,0.3834,2608.1,2607.9,0.38342]
[1727054934247,0.3834,2608.1,2607.7,3.2078]
[1727054934248,0.9585,2608.1,2607.7,3.2078]
[1727054934453,0.38344,2607.9,2607.7,3.59126]
[1727054934947,3.8344,2607.9,2607.5,0.38348]
[1727054935151,0.3834,2607.8,2607.7,0.38346]
[1727054935350,0.3834,2607.8,2607.6,0.38346]
[1727054935550,0.3834,2607.8,2607.7,0.38346]
[1727054936551,4.56368,2608.2,2607.9,0.38342]
[1727054936552,0.3834,2608.1,2607.9,0.38342]
[1727054937157,0.9585,2608.1,2607.3,5.3078]
[1727054937347,3.6052,2608.2,2607.6,0.38347]
[1727054937348,0.38345,2607.8,2607.6,0.38347]
[1727054938348,0.3936,2607.9,2607.4,0.38349]
[1727054938543,0.3715,2607.7,2607.5,0.38348]
[1727054938750,0.3715,2607.7,2607.3,5.3078]
[1727054938751,0.75496,2607.7,2607.4,0.38349]
[1727054939154,0.3715,2607.7,2607.5,0.38348]
[1727054939651,0.3715,2607.7,2607.5,0.38347]
[1727054939851,0.3715,2607.7,2607.6,0.38347]
[1727054940261,0.75497,2607.7,2607.4,0.38349]
[1727054940456,0.3793,2607.6,2607.4,0.38349]
[1727054940647,0.3835,2607.4,2606.6,4.135]
[1727054940847,3.05876,2607.4,2606.8,3.2078]
[1727054941055,0.38357,2606.9,2606.8,3.2078]
[1727054941254,0.38357,2606.9,2606.6,0.38361]
[1727054941962,0.3694,2607.0,2606.7,2.1]
[1727054942157,0.3936,2607.1,2606.9,0.38357]
[1727054942357,0.76872,2607.3,2607.0,0.38356]
[1727054942662,0.3835,2607.4,2607.1,0.38354]
[1727054944764,0.7566,2607.5,2607.3,0.38351]
[1727054944955,1.14009,2607.5,2607.2,2.48352]
[1727054945156,0.7566,2607.5,2607.2,2.1]
[1727054945350,0.38346,2607.7,2607.4,0.38349]
[1727054946160,4.16639,2607.9,2607.2,2.1]
[1727054946161,0.95861,2607.8,2607.2,2.1]
[1727054946355,0.38347,2607.6,2607.3,0.38351]
[1727054947053,0.38349,2607.5,2607.2,0.38352]
[1727054947254,0.76279,2607.5,2607.2,0.38352]
[1727054947463,0.3992,2607.4,2607.2,0.38352]
[1727054948262,0.3992,2607.4,2607.0,0.38355]
[1727054948456,0.38353,2607.2,2606.7,12.5318]
[1727054948662,0.38352,2607.3,2607.0,0.38355]
[1727054949051,0.38353,2607.2,2606.9,0.38357]
[1727054949255,0.38352,2607.3,2607.0,0.38356]
[1727054949460,0.7992,2607.4,2606.7,6.7468]
[1727054949661,0.7992,2607.4,2607.2,0.38353]
[1727054949860,0.3793,2607.5,2607.4,0.3835]
[1727054950060,0.3793,2607.5,2607.0,3.2078]
[1727054950262,0.38351,2607.4,2607.1,0.38353]
[1727054950463,0.38351,2607.4,2607.0,3.2078]
[1727054950967,0.76279,2607.5,2607.2,0.38353]
[1727054951161,0.3793,2607.5,2607.3,0.38351]
[1727054951359,0.76279,2607.5,2607.2,0.38352]
[1727054951562,0.3793,2607.5,2607.0,3.2078]
[1727054951863,0.3793,2607.5,2606.7,6.7468]
[1727054952076,3.2078,2606.9,2606.1,3.2078]
[1727054952258,3.2078,2606.5,2606.1,3.2078]
[1727054952454,3.2078,2606.5,2605.4,3.2078]
[1727054952455,0.38365,2606.4,2605.4,3.2078]
[1727054952653,0.38365,2606.4,2605.5,0.38377]
[1727054952654,0.38372,2606.0,2605.5,0.38377]
[1727054952862,0.7783,2605.9,2605.5,0.38377]
[1727054953267,0.38377,2605.6,2605.1,0.91353403]
[1727054953467,0.38376,2605.7,2605.1,0.38384]
[1727054953664,0.38376,2605.7,2605.2,0.38382]
[1727054954166,0.38374,2605.8,2605.3,0.3838]
[1727054954367,0.7783,2605.9,2605.3,3.2078]
[1727054954559,0.7783,2605.9,2605.4,0.38378]
[1727054954862,1.16202,2605.9,2605.4,0.38378]
[1727054955266,0.7783,2605.9,2605.5,0.38378]
[1727054955566,1.16202,2605.9,2605.4,0.38379]
[1727054955952,0.7783,2605.9,2605.5,0.38377]
[1727054956156,0.7783,2605.9,2605.3,3.2078]
[1727054956370,0.7783,2605.9,2605.6,0.38375]
[1727054957356,1.16203,2605.9,2605.5,0.38377]
[1727054957567,0.38374,2605.8,2605.4,0.38379]
[1727054958061,1.16203,2605.9,2605.5,0.38378]
[1727054958260,1.16203,2605.9,2605.2,2.58]
[1727054958261,3.2078,2606.0,2605.6,3.2078]
[1727054958654,3.2078,2606.0,2605.8,0.38373]
[1727054958863,3.2078,2606.0,2605.7,0.38374]
[1727054959063,3.59151,2606.0,2605.7,0.38375]
[1727054959355,3.59151,2606.0,2605.6,3.59156]
[1727054959858,0.38372,2606.0,2605.7,0.38374]
[1727054960058,0.3837,2606.1,2605.6,3.2078]
[1727054960259,0.3837,2606.1,2605.4,0.3969]
[1727054960260,0.38371,2606.0,2605.7,0.38374]
[1727054961369,4.94155,2606.4,2605.4,0.3969]
[1727054961671,0.38371,2606.0,2605.7,0.38374]
[1727054961869,0.3837,2606.1,2605.8,0.38373]
[1727054962170,0.38371,2606.0,2605.8,0.38373]
[1727054962969,0.3837,2606.1,2605.8,0.38373]
[1727054963172,3.9824,2606.4,2605.6,3.2078]
[1727054963362,4.36605,2606.4,2606.1,0.38368]
[1727054963591,0.3977,2606.6,2605.9,3.2078]
[1727054963868,1.35781,2606.5,2605.6,3.2078]
[1727054964071,0.3837,2606.1,2605.6,3.2078]
[1727054964268,0.3837,2606.1,2605.8,0.38372]
[1727054964575,0.38369,2606.1,2605.9,0.38372]
[1727054966059,0.38369,2606.1,2605.8,0.38373]
[1727054966467,0.38369,2606.1,2605.9,0.38372]
[1727054967165,0.38369,2606.1,2605.6,3.2078]
[1727054967166,0.38374,2605.8,2605.6,3.59156]
[1727054967368,0.9592,2606.2,2605.7,0.38375]
[1727054967369,0.38373,2605.9,2605.7,0.38375]
[1727054967571,1.12371,2606.0,2605.8,0.38373]
[1727054968267,1.12371,2606.0,2605.7,0.38374]
[1727054968464,0.3743,2605.9,2605.8,0.38374]
[1727054968859,0.3743,2605.9,2605.6,3.2078]
[1727054969062,0.75803,2605.9,2605.6,0.38376]
[1727054969370,0.38374,2605.8,2605.2,3.2078]
[1727054969670,0.38374,2605.8,2605.6,0.38376]
[1727054970268,0.38375,2605.7,2605.4,0.38379]
[1727054970569,0.38375,2605.7,2605.2,3.2078]
[1727054970774,0.38375,2605.7,2605.5,0.38378]
[1727054970966,0.38374,2605.8,2605.5,0.38378]
[1727054972063,0.75803,2605.9,2605.2,3.2078]
[1727054972268,0.3743,2605.9,2605.7,0.38374]
[1727054972877,0.3743,2605.9,2605.5,3.2078]
[1727054973059,0.38374,2605.8,2605.5,3.2078]
[1727054973267,0.38374,2605.8,2605.5,0.38377]
[1727054973469,0.75803,2605.9,2605.6,0.38375]
[1727054973662,0.3743,2605.9,2605.7,0.38375]
[1727054974169,0.3743,2605.9,2605.4,3.2078]
[1727054974371,0.3672,2606.0,2605.6,2.1]
[1727054974570,0.38368,2606.2,2605.9,0.38371]
[1727054975365,0.7787,2606.4,2606.0,0.38369]
[1727054975567,0.7787,2606.4,2605.8,2.1]
[1727054975767,0.7787,2606.4,2605.8,0.3852]
[1727054976076,0.7787,2606.4,2605.7,3.2078]
[1727054976375,0.38368,2606.2,2605.8,0.38374]
[1727054976672,1.16235,2606.4,2605.7,3.2078]
[1727054976975,1.16235,2606.4,2606.0,0.3837]
[1727054977166,0.7787,2606.4,2606.1,0.38369]
[1727054977371,1.16235,2606.4,2606.0,0.3837]
[1727054977569,0.7787,2606.4,2606.1,0.38368]
[1727054977877,0.7787,2606.4,2606.1,2.1]
[1727054978071,0.7787,2606.4,2606.0,3.2078]
[1727054978378,1.16235,2606.4,2606.1,0.38368]
[1727054978671,0.7787,2606.4,2606.1,0.38368]
[1727054978980,1.16235,2606.4,2606.0,0.38369]
[1727054979678,1.16235,2606.4,2606.1,0.38369]
[1727054981782,0.7787,2606.4,2606.0,3.2078]
[1727054982069,0.38356,2607.0,2606.4,0.38364]
[1727054982278,0.78801,2606.7,2606.5,0.38363]
[1727054982975,0.4044,2606.7,2606.6,0.38362]
[1727054983178,1.1681,2607.1,2606.5,2.1]
[1727054983369,1.1681,2607.1,2606.9,0.38356]
[1727054983672,1.55165,2607.1,2606.9,0.38356]
[1727054983873,1.1681,2607.1,2606.9,0.38356]
[1727054984279,1.1681,2607.1,2607.0,0.38356]
[1727054984472,0.4031,2607.5,2606.8,5.3078]
[1727054984679,0.38354,2607.2,2607.0,0.38356]
[1727054985576,0.38352,2607.3,2607.0,0.38356]
[1727054985775,0.38352,2607.3,2607.1,0.38354]
[1727054986275,0.38354,2607.2,2606.9,0.38357]
[1727054986883,2.00006158,2607.4,2606.9,2.1]
[1727054987067,1.1729,2607.5,2607.2,0.38352]
[1727054987473,1.1729,2607.5,2607.3,0.38351]
[1727054988176,0.3835,2607.4,2607.2,0.38352]
[1727054988371,1.17289,2607.5,2607.2,0.38352]
[1727054989186,1.17289,2607.5,2606.9,2.1]
[1727054989187,0.38352,2607.3,2607.1,0.38354]
[1727054989681,0.38351,2607.4,2607.2,0.38353]
[1727054990271,0.7894,2607.5,2607.2,0.38353]
[1727054990879,0.3835,2607.4,2607.2,0.38353]
[1727054991082,0.7894,2607.5,2607.2,0.38353]
[1727054991281,0.3835,2607.4,2607.2,0.38353]
[1727054991468,0.38351,2607.3,2607.1,0.38353]
[1727054991874,0.38351,2607.4,2607.2,0.38353]
[1727054992078,0.7894,2607.5,2607.2,0.38353]
[1727054992294,0.7894,2607.5,2606.9,2.1]
[1727054992295,0.7894,2607.5,2607.3,0.38351]
[1727054992477,1.17289,2607.5,2607.3,0.38351]
[1727054992875,0.7894,2607.5,2607.4,0.3835]
[1727054996280,0.3712,2607.7,2607.6,0.38347]
[1727054997180,0.4079516,2607.7,2607.6,0.38347]
[1727054998184,0.7914216,2607.7,2607.5,0.38348]
[1727054998378,0.7914216,2607.7,2607.2,0.95881]
[1727054998379,0.7914216,2607.7,2607.6,0.38347]
[1727055000281,0.4079516,2607.7,2607.6,0.38347]
[1727055002387,0.7914116,2607.7,2607.6,0.38347]
[1727055002688,0.0367516,2607.7,2607.6,0.38347]
[1727055002993,0.0367516,2607.7,2607.6,10.48515]
[1727055003487,2.00006158,2608.2,2607.6,16.10168]
[1727055003690,1.1513,2608.5,2608.4,0.38335]
[1727055003990,1.1513,2608.5,2608.0,3.2078]
[1727055003991,1.53465,2608.5,2608.0,5.3078]
[1727055004184,0.38337,2608.3,2607.8,2.1]
[1727055004393,0.38337,2608.3,2608.1,0.38338]
[1727055004689,0.38337,2608.3,2608.2,0.38338]
[1727055004886,0.38337,2608.3,2607.8,2.1]
[1727055005214,4.3591,2608.5,2607.7,3.2078]
[1727055005391,2.00006158,2608.4,2607.7,0.38345]
[1727055005689,5.3078,2607.9,2607.1,3.2078]
[1727055005888,0.3836,2606.8,2606.0,7.3428]
[1727055006188,0.7944,2606.7,2606.3,0.38365]
[1727055006386,3.2751,2606.7,2606.0,5.3078]
[1727055006587,6.4829,2606.7,2606.0,5.3078]
[1727055006806,1.1751,2606.7,2606.6,0.38362]
[1727055007288,2.00006158,2607.4,2607.2,0.38353]
[1727055007495,0.7944,2607.4,2607.0,5.3078]
[1727055007680,0.7944,2607.4,2607.3,0.38351]
[1727055007883,0.3807,2607.6,2607.5,0.38348]
[1727055008086,0.3807,2607.6,2607.3,2.1]
[1727055008290,0.76417,2607.6,2607.2,0.38352]
[1727055008481,0.76417,2607.6,2607.0,3.2078]
[1727055008685,0.3807,2607.6,2607.4,0.3835]
[1727055008907,0.3807,2607.6,2607.3,0.38351]
[1727055009190,0.3807,2607.6,2607.0,3.2078]
[1727055010294,0.3807,2607.6,2607.4,0.38349]
[1727055012491,0.38349,2607.5,2607.2,0.38352]
[1727055013600,0.3807,2607.6,2607.0,3.2078]